[Event "Titled Tuesday Blitz April 4 Early 2023"]
[White "Gubajdullin, Alexei"]
[Black "babbilator"]
[WhiteFideId "4141202"]
[WhiteElo "2279"]
[BlackElo "2258"]
[Result "1-0"]
[Round "03"]
[TimeControl "180+2"]
[Date "2023.04.04"]
[WhiteClock "0:02:01"]
[BlackClock "0:02:06"]

1. d4 {[%clk 0:02:59]}  Nf6 {[%clk 0:02:58]} 2. Nf3 {[%clk 0:02:58]}  e6 {[%clk 0:02:58]} 3. Bf4 {[%clk 0:02:58]}  c5 {[%clk 0:02:56]} 4. e3 {[%clk 0:02:58]}  b6 {[%clk 0:02:57]} 5. h3 {[%clk 0:02:56]}  Bb7 {[%clk 0:02:57]} 6. Nbd2 {[%clk 0:02:56]}  Be7 {[%clk 0:02:57]} 7. Be2 {[%clk 0:02:54]}  O-O {[%clk 0:02:55]} 8. O-O {[%clk 0:02:54]}  d6 {[%clk 0:02:42]} 9. a4 {[%clk 0:02:49]}  a6 {[%clk 0:02:41]} 10. Nc4 {[%clk 0:02:47]}  cxd4 {[%clk 0:02:34]} 11. exd4 {[%clk 0:02:47]}  Qc7 {[%clk 0:02:32]} 12. a5 {[%clk 0:02:38]}  b5 {[%clk 0:02:31]} 13. Nb6 {[%clk 0:02:37]}  Ra7 {[%clk 0:02:31]} 14. c4 {[%clk 0:02:11]}  bxc4 {[%clk 0:02:30]} 15. Bxc4 {[%clk 0:02:09]}  Nbd7 {[%clk 0:02:29]} 16. Qb3 {[%clk 0:02:09]}  Nd5 {[%clk 0:02:06]} 17. Bxd5 {[%clk 0:02:01]} 1-0


[Site "https://www.chess.com"]

[Event "Titled Tuesday Blitz April 4 Early 2023"]
[White "Tsotsonava, Elene"]
[Black "Gurevich, Dmitry"]
[WhiteFideId "13615939"]
[BlackFideId "2000407"]
[WhiteElo "1829"]
[BlackElo "2506"]
[Result "0-1"]
[Round "03"]
[TimeControl "180+2"]
[Date "2023.04.04"]
[WhiteClock "0:01:26"]
[BlackClock "0:00:52"]

1. e4 {[%clk 0:03:00]}  c5 {[%clk 0:02:51]} 2. Nf3 {[%clk 0:03:01]}  d6 {[%clk 0:02:51]} 3. d4 {[%clk 0:03:01]}  cxd4 {[%clk 0:02:51]} 4. Nxd4 {[%clk 0:03:02]}  Nf6 {[%clk 0:02:51]} 5. Nc3 {[%clk 0:03:02]}  Nc6 {[%clk 0:02:51]} 6. Bg5 {[%clk 0:03:02]}  g6 {[%clk 0:02:51]} 7. Qd2 {[%clk 0:03:00]}  Bg7 {[%clk 0:02:50]} 8. O-O-O {[%clk 0:02:58]}  Nxd4 {[%clk 0:02:43]} 9. Qxd4 {[%clk 0:02:57]}  O-O {[%clk 0:02:44]} 10. e5 {[%clk 0:02:56]}  Nd7 {[%clk 0:02:37]} 11. f4 {[%clk 0:02:55]}  dxe5 {[%clk 0:02:25]} 12. fxe5 {[%clk 0:02:52]}  Bxe5 {[%clk 0:02:22]} 13. Qb4 {[%clk 0:02:53]}  Qb6 {[%clk 0:02:07]} 14. Qxb6 {[%clk 0:02:46]}  Nxb6 {[%clk 0:02:01]} 15. Bxe7 {[%clk 0:02:46]}  Re8 {[%clk 0:02:00]} 16. Bb4 {[%clk 0:02:45]}  Bg4 {[%clk 0:01:56]} 17. Bb5 {[%clk 0:02:31]}  Bxd1 {[%clk 0:01:41]} 18. Bxe8 {[%clk 0:02:30]}  Rxe8 {[%clk 0:01:31]} 19. Rxd1 {[%clk 0:02:28]}  Bxh2 {[%clk 0:01:27]} 20. Bc5 {[%clk 0:02:23]}  Bf4+ {[%clk 0:01:18]} 21. Kb1 {[%clk 0:02:23]}  h5 {[%clk 0:01:08]} 22. Bxb6 {[%clk 0:02:19]}  axb6 {[%clk 0:01:07]} 23. Nd5 {[%clk 0:02:19]}  Bg5 {[%clk 0:01:07]} 24. Nxb6 {[%clk 0:02:17]}  Re2 {[%clk 0:01:05]} 25. a4 {[%clk 0:02:15]}  Rxg2 {[%clk 0:01:04]} 26. Rd7 {[%clk 0:02:15]}  h4 {[%clk 0:01:03]} 27. Rd1 {[%clk 0:01:41]}  h3 {[%clk 0:01:02]} 28. Rh1 {[%clk 0:01:41]}  h2 {[%clk 0:01:01]} 29. Ka2 {[%clk 0:01:39]}  Bf4 {[%clk 0:00:56]} 30. Nd5 {[%clk 0:01:36]}  Rg1 {[%clk 0:00:54]} 31. Nxf4 {[%clk 0:01:27]}  Rxh1 {[%clk 0:00:53]} 32. Ne2 {[%clk 0:01:26]}  Rg1 {[%clk 0:00:52]} 0-1


[Site "https://www.chess.com"]

[Event "Titled Tuesday Blitz April 4 Early 2023"]
[White "Salman, Pavel"]
[Black "Acikel, Mert"]
[WhiteFideId "24153753"]
[BlackFideId "12956465"]
[WhiteElo "2187"]
[BlackElo "2097"]
[Result "0-1"]
[Round "03"]
[TimeControl "180+2"]
[Date "2023.04.04"]
[WhiteClock "0:00:46"]
[BlackClock "0:00:15"]

1. g3 {[%clk 0:02:59]}  d5 {[%clk 0:02:58]} 2. Bg2 {[%clk 0:03:00]}  Nf6 {[%clk 0:02:58]} 3. Nf3 {[%clk 0:03:01]}  e6 {[%clk 0:02:59]} 4. d3 {[%clk 0:03:01]}  Be7 {[%clk 0:02:59]} 5. Nbd2 {[%clk 0:03:02]}  O-O {[%clk 0:02:59]} 6. O-O {[%clk 0:03:03]}  c5 {[%clk 0:03:00]} 7. e4 {[%clk 0:03:04]}  Nc6 {[%clk 0:03:00]} 8. Re1 {[%clk 0:03:04]}  b5 {[%clk 0:03:01]} 9. e5 {[%clk 0:03:05]}  Nd7 {[%clk 0:03:01]} 10. Nf1 {[%clk 0:03:05]}  a5 {[%clk 0:03:02]} 11. h4 {[%clk 0:03:05]}  a4 {[%clk 0:03:02]} 12. Bf4 {[%clk 0:03:05]}  a3 {[%clk 0:03:00]} 13. b3 {[%clk 0:03:05]}  Bb7 {[%clk 0:02:54]} 14. h5 {[%clk 0:03:05]}  h6 {[%clk 0:02:49]} 15. Qc1 {[%clk 0:03:05]}  Qc7 {[%clk 0:02:36]} 16. g4 {[%clk 0:03:04]}  Nd4 {[%clk 0:02:30]} 17. Nxd4 {[%clk 0:03:04]}  cxd4 {[%clk 0:02:30]} 18. Ng3 {[%clk 0:03:04]}  Rfc8 {[%clk 0:02:30]} 19. Re2 {[%clk 0:03:04]}  Qd8 {[%clk 0:02:27]} 20. Qd2 {[%clk 0:02:56]}  Rc3 {[%clk 0:02:21]} 21. Rf1 {[%clk 0:02:55]}  Rac8 {[%clk 0:02:21]} 22. Qd1 {[%clk 0:02:50]}  Bg5 {[%clk 0:02:21]} 23. Bd2 {[%clk 0:02:32]}  Bxd2 {[%clk 0:02:10]} 24. Rxd2 {[%clk 0:02:32]}  Nxe5 {[%clk 0:02:11]} 25. f4 {[%clk 0:02:33]}  Nc6 {[%clk 0:01:56]} 26. f5 {[%clk 0:02:33]}  Qg5 {[%clk 0:01:33]} 27. fxe6 {[%clk 0:02:20]}  fxe6 {[%clk 0:01:33]} 28. Qe2 {[%clk 0:02:20]}  Re8 {[%clk 0:01:32]} 29. Rf2 {[%clk 0:02:16]}  Ne5 {[%clk 0:01:25]} 30. Bf3 {[%clk 0:01:58]}  Bc8 {[%clk 0:01:22]} 31. Rd1 {[%clk 0:01:51]}  Qe3 {[%clk 0:01:12]} 32. Rf1 {[%clk 0:01:40]}  Rf8 {[%clk 0:01:04]} 33. Kg2 {[%clk 0:01:32]}  Nxf3 {[%clk 0:00:43]} 34. Rxf3 {[%clk 0:01:22]}  Rxf3 {[%clk 0:00:42]} 35. Qxf3 {[%clk 0:01:10]}  Rxc2+ {[%clk 0:00:41]} 36. Rf2 {[%clk 0:01:11]}  Rxf2+ {[%clk 0:00:30]} 37. Qxf2 {[%clk 0:01:10]}  Qxd3 {[%clk 0:00:16]} 38. Qf4 {[%clk 0:01:10]}  Qc2+ {[%clk 0:00:10]} 39. Kh3 {[%clk 0:01:10]}  d3 {[%clk 0:00:10]} 40. Nf1 {[%clk 0:01:02]}  Qc3 {[%clk 0:00:11]} 41. Nd2 {[%clk 0:00:33]}  e5 {[%clk 0:00:11]} 42. Qf2 {[%clk 0:00:34]}  e4 {[%clk 0:00:08]} 43. Qe3 {[%clk 0:00:35]}  Qf6 {[%clk 0:00:05]} 44. Kg3 {[%clk 0:00:34]}  Qg5 {[%clk 0:00:06]} 45. Qxg5 {[%clk 0:00:28]}  hxg5 {[%clk 0:00:06]} 46. Kf2 {[%clk 0:00:29]}  Be6 {[%clk 0:00:06]} 47. Ke3 {[%clk 0:00:29]}  Kf7 {[%clk 0:00:06]} 48. Kd4 {[%clk 0:00:29]}  Bxg4 {[%clk 0:00:06]} 49. Kxd5 {[%clk 0:00:29]}  e3 {[%clk 0:00:06]} 50. Ne4 {[%clk 0:00:30]}  d2 {[%clk 0:00:06]} 51. Nxg5+ {[%clk 0:00:31]}  Kg8 {[%clk 0:00:06]} 52. b4 {[%clk 0:00:29]}  d1=Q+ {[%clk 0:00:06]} 53. Ke4 {[%clk 0:00:29]}  Bf3+ {[%clk 0:00:05]} 54. Nxf3 {[%clk 0:00:29]}  Qa1 {[%clk 0:00:05]} 55. Kxe3 {[%clk 0:00:29]}  Qxa2 {[%clk 0:00:05]} 56. Kf4 {[%clk 0:00:30]}  Qc4+ {[%clk 0:00:05]} 57. Kg3 {[%clk 0:00:30]}  Qxb4 {[%clk 0:00:05]} 58. h6 {[%clk 0:00:31]}  Qc3 {[%clk 0:00:05]} 59. h7+ {[%clk 0:00:31]}  Kxh7 {[%clk 0:00:05]} 60. Kg4 {[%clk 0:00:32]}  Qxf3+ {[%clk 0:00:06]} 61. Kxf3 {[%clk 0:00:33]}  a2 {[%clk 0:00:07]} 62. Kg4 {[%clk 0:00:32]}  a1=Q {[%clk 0:00:07]} 63. Kh5 {[%clk 0:00:33]}  Qg1 {[%clk 0:00:07]} 64. Kh4 {[%clk 0:00:34]}  Kh6 {[%clk 0:00:07]} 65. Kh3 {[%clk 0:00:35]}  Qg5 {[%clk 0:00:06]} 66. Kh2 {[%clk 0:00:36]}  Kh5 {[%clk 0:00:07]} 67. Kh1 {[%clk 0:00:36]}  Qg4 {[%clk 0:00:07]} 68. Kh2 {[%clk 0:00:37]}  g6 {[%clk 0:00:07]} 69. Kh1 {[%clk 0:00:37]}  g5 {[%clk 0:00:08]} 70. Kh2 {[%clk 0:00:38]}  b4 {[%clk 0:00:09]} 71. Kh1 {[%clk 0:00:39]}  b3 {[%clk 0:00:10]} 72. Kh2 {[%clk 0:00:39]}  b2 {[%clk 0:00:11]} 73. Kh1 {[%clk 0:00:40]}  b1=N {[%clk 0:00:11]} 74. Kh2 {[%clk 0:00:41]}  Na3 {[%clk 0:00:12]} 75. Kh1 {[%clk 0:00:42]}  Nc4 {[%clk 0:00:13]} 76. Kh2 {[%clk 0:00:43]}  Ne5 {[%clk 0:00:14]} 77. Kh1 {[%clk 0:00:44]}  Kh4 {[%clk 0:00:13]} 78. Kh2 {[%clk 0:00:45]}  Nf3+ {[%clk 0:00:14]} 79. Kh1 {[%clk 0:00:46]}  Qg1# {[%clk 0:00:15]} 0-1


[Site "https://www.chess.com"]

[Event "Titled Tuesday Blitz April 4 Early 2023"]
[White "Lach, Aleksandra"]
[Black "Staudenhocker43"]
[WhiteFideId "1134299"]
[WhiteElo "2111"]
[BlackElo "2550"]
[Result "0-1"]
[Round "03"]
[TimeControl "180+2"]
[Date "2023.04.04"]
[WhiteClock "0:00:59"]
[BlackClock "0:00:30"]

1. Nf3 {[%clk 0:02:59]}  Nf6 {[%clk 0:02:58]} 2. g3 {[%clk 0:02:59]}  g6 {[%clk 0:02:58]} 3. Bg2 {[%clk 0:03:00]}  Bg7 {[%clk 0:02:59]} 4. O-O {[%clk 0:03:01]}  O-O {[%clk 0:02:59]} 5. d3 {[%clk 0:02:57]}  c5 {[%clk 0:02:58]} 6. e4 {[%clk 0:02:57]}  d6 {[%clk 0:02:58]} 7. Nc3 {[%clk 0:02:54]}  Nc6 {[%clk 0:02:58]} 8. Qd2 {[%clk 0:02:52]}  Rb8 {[%clk 0:02:56]} 9. a4 {[%clk 0:02:51]}  a6 {[%clk 0:02:56]} 10. b3 {[%clk 0:02:51]}  b5 {[%clk 0:02:53]} 11. axb5 {[%clk 0:02:52]}  axb5 {[%clk 0:02:54]} 12. Bb2 {[%clk 0:02:52]}  e5 {[%clk 0:02:51]} 13. h3 {[%clk 0:02:46]}  h6 {[%clk 0:02:49]} 14. Nh2 {[%clk 0:02:45]}  Nh5 {[%clk 0:02:40]} 15. Ne2 {[%clk 0:02:43]}  Nd4 {[%clk 0:02:32]} 16. Bxd4 {[%clk 0:02:29]}  cxd4 {[%clk 0:02:31]} 17. g4 {[%clk 0:02:28]}  Nf6 {[%clk 0:02:17]} 18. f4 {[%clk 0:02:27]}  Bd7 {[%clk 0:02:09]} 19. Nf3 {[%clk 0:02:25]}  Nh7 {[%clk 0:02:04]} 20. f5 {[%clk 0:02:23]}  g5 {[%clk 0:01:55]} 21. c3 {[%clk 0:02:22]}  dxc3 {[%clk 0:01:54]} 22. Nxc3 {[%clk 0:02:19]}  Nf6 {[%clk 0:01:50]} 23. Rfd1 {[%clk 0:02:15]}  b4 {[%clk 0:01:50]} 24. Ne2 {[%clk 0:02:04]}  Re8 {[%clk 0:01:48]} 25. Qe3 {[%clk 0:01:59]}  Bb5 {[%clk 0:01:42]} 26. Kh1 {[%clk 0:01:53]}  d5 {[%clk 0:01:41]} 27. Qc5 {[%clk 0:01:44]}  Qe7 {[%clk 0:01:23]} 28. Qxe7 {[%clk 0:01:39]}  Rxe7 {[%clk 0:01:24]} 29. exd5 {[%clk 0:01:39]}  e4 {[%clk 0:01:18]} 30. Ned4 {[%clk 0:01:37]}  exf3 {[%clk 0:01:16]} 31. Bxf3 {[%clk 0:01:37]}  Nxg4 {[%clk 0:01:10]} 32. hxg4 {[%clk 0:01:29]}  Bxd4 {[%clk 0:01:09]} 33. Ra5 {[%clk 0:01:28]}  Be5 {[%clk 0:01:03]} 34. Be4 {[%clk 0:01:28]}  Be8 {[%clk 0:00:56]} 35. Kg2 {[%clk 0:01:25]}  Kg7 {[%clk 0:00:55]} 36. Kf3 {[%clk 0:01:25]}  f6 {[%clk 0:00:51]} 37. Ra6 {[%clk 0:01:22]}  Rd7 {[%clk 0:00:48]} 38. Rc1 {[%clk 0:01:19]}  Bf7 {[%clk 0:00:48]} 39. Rc5 {[%clk 0:01:17]}  Rbd8 {[%clk 0:00:46]} 40. Raa5 {[%clk 0:01:06]}  Bd4 {[%clk 0:00:45]} 41. Rc4 {[%clk 0:01:07]}  Bc3 {[%clk 0:00:45]} 42. Rcc5 {[%clk 0:01:06]}  h5 {[%clk 0:00:43]} 43. gxh5 {[%clk 0:01:04]}  Bxh5+ {[%clk 0:00:44]} 44. Ke3 {[%clk 0:01:05]}  Bf7 {[%clk 0:00:43]} 45. d4 {[%clk 0:01:03]}  g4 {[%clk 0:00:43]} 46. Kd3 {[%clk 0:01:03]}  g3 {[%clk 0:00:41]} 47. Kc4 {[%clk 0:01:01]}  Re7 {[%clk 0:00:33]} 48. Kd3 {[%clk 0:00:59]}  Rxe4 {[%clk 0:00:30]} 49. Kxe4 {[%clk 0:00:59]}  g2 {[%clk 0:00:30]} 50. Ra2 {[%clk 0:00:59]} 0-1


[Site "https://www.chess.com"]

[Event "Titled Tuesday Blitz April 4 Early 2023"]
[White "koncheto"]
[Black "Perez Rodriguez, Jennifer"]
[BlackFideId "3507831"]
[WhiteElo "2522"]
[BlackElo "2116"]
[Result "1-0"]
[Round "03"]
[TimeControl "180+2"]
[Date "2023.04.04"]
[WhiteClock "0:02:07"]
[BlackClock "0:02:11"]

1. e4 {[%clk 0:03:00]}  e5 {[%clk 0:02:59]} 2. Nf3 {[%clk 0:03:00]}  Nc6 {[%clk 0:02:58]} 3. d4 {[%clk 0:03:00]}  exd4 {[%clk 0:02:58]} 4. Bc4 {[%clk 0:03:00]}  Nf6 {[%clk 0:02:58]} 5. O-O {[%clk 0:03:01]}  Nxe4 {[%clk 0:02:58]} 6. Nc3 {[%clk 0:03:01]}  dxc3 {[%clk 0:02:43]} 7. Bxf7+ {[%clk 0:03:00]}  Kxf7 {[%clk 0:02:43]} 8. Qd5+ {[%clk 0:03:00]}  Ke8 {[%clk 0:02:38]} 9. Re1 {[%clk 0:03:01]}  Be7 {[%clk 0:02:22]} 10. Rxe4 {[%clk 0:03:00]}  Rf8 {[%clk 0:02:13]} 11. Bg5 {[%clk 0:02:47]}  Rf7 {[%clk 0:02:12]} 12. Bxe7 {[%clk 0:02:07]}  Nxe7 {[%clk 0:02:11]} 13. Ng5 {[%clk 0:02:07]} 1-0


[Site "https://www.chess.com"]

[Event "Titled Tuesday Blitz April 4 Early 2023"]
[White "Kujawski, Adam"]
[Black "Padmini, Rout"]
[WhiteFideId "1100920"]
[BlackFideId "5029295"]
[WhiteElo "2054"]
[BlackElo "2314"]
[Result "0-1"]
[Round "03"]
[TimeControl "180+2"]
[Date "2023.04.04"]
[WhiteClock "0:00:05"]
[BlackClock "0:01:17"]

1. e4 {[%clk 0:02:50]}  e6 {[%clk 0:02:58]} 2. d4 {[%clk 0:02:49]}  d5 {[%clk 0:02:58]} 3. Nc3 {[%clk 0:02:49]}  Nf6 {[%clk 0:02:56]} 4. Bg5 {[%clk 0:02:48]}  dxe4 {[%clk 0:02:52]} 5. Nxe4 {[%clk 0:02:48]}  Be7 {[%clk 0:02:53]} 6. Bxf6 {[%clk 0:02:48]}  gxf6 {[%clk 0:02:52]} 7. Nf3 {[%clk 0:02:47]}  f5 {[%clk 0:02:49]} 8. Ng3 {[%clk 0:02:46]}  a6 {[%clk 0:02:42]} 9. Ne5 {[%clk 0:02:28]}  Nd7 {[%clk 0:02:41]} 10. f4 {[%clk 0:02:01]}  Nxe5 {[%clk 0:02:26]} 11. fxe5 {[%clk 0:02:00]}  c5 {[%clk 0:02:25]} 12. c3 {[%clk 0:01:51]}  cxd4 {[%clk 0:02:25]} 13. cxd4 {[%clk 0:01:51]}  Qb6 {[%clk 0:02:24]} 14. Rc1 {[%clk 0:01:22]}  Qxb2 {[%clk 0:02:18]} 15. Rc2 {[%clk 0:01:21]}  Qb4+ {[%clk 0:02:12]} 16. Kf2 {[%clk 0:01:19]}  Bd7 {[%clk 0:02:12]} 17. Be2 {[%clk 0:01:09]}  Ba4 {[%clk 0:02:10]} 18. Bd3 {[%clk 0:00:15]}  Qxd4+ {[%clk 0:01:49]} 19. Kf3 {[%clk 0:00:12]}  Qd5+ {[%clk 0:01:46]} 20. Kf2 {[%clk 0:00:09]}  Bxc2 {[%clk 0:01:45]} 21. Qxc2 {[%clk 0:00:10]}  Bc5+ {[%clk 0:01:43]} 22. Kf1 {[%clk 0:00:09]}  Qxe5 {[%clk 0:01:41]} 23. Ne2 {[%clk 0:00:08]}  O-O {[%clk 0:01:39]} 24. h4 {[%clk 0:00:08]}  Rac8 {[%clk 0:01:35]} 25. Qb1 {[%clk 0:00:08]}  Rfd8 {[%clk 0:01:30]} 26. Rh3 {[%clk 0:00:08]}  Be3 {[%clk 0:01:23]} 27. Rg3+ {[%clk 0:00:07]}  Kh8 {[%clk 0:01:22]} 28. Qxb7 {[%clk 0:00:06]}  Qa1+ {[%clk 0:01:19]} 29. Bb1 {[%clk 0:00:05]}  Rd1# {[%clk 0:01:17]} 0-1


[Site "https://www.chess.com"]

[Event "Titled Tuesday Blitz April 4 Early 2023"]
[White "Mushini Ajay"]
[Black "Weishaeutel, Moritz"]
[WhiteFideId "35066188"]
[BlackFideId "12967300"]
[WhiteElo "2145"]
[BlackElo "2301"]
[Result "0-1"]
[Round "03"]
[TimeControl "180+2"]
[Date "2023.04.04"]
[WhiteClock "0:01:55"]
[BlackClock "0:01:29"]

1. e4 {[%clk 0:03:00]}  e5 {[%clk 0:03:00]} 2. Nf3 {[%clk 0:03:00]}  Nf6 {[%clk 0:03:00]} 3. Nxe5 {[%clk 0:02:59]}  Nc6 {[%clk 0:03:01]} 4. Nxc6 {[%clk 0:02:57]}  dxc6 {[%clk 0:03:02]} 5. d4 {[%clk 0:02:56]}  Nxe4 {[%clk 0:03:01]} 6. Bd3 {[%clk 0:02:57]}  Nf6 {[%clk 0:02:58]} 7. c3 {[%clk 0:02:56]}  Bg4 {[%clk 0:02:51]} 8. Qc2 {[%clk 0:02:54]}  Bd6 {[%clk 0:02:42]} 9. Bg5 {[%clk 0:02:53]}  Qe7+ {[%clk 0:02:41]} 10. Kf1 {[%clk 0:02:48]}  h6 {[%clk 0:02:38]} 11. Bh4 {[%clk 0:02:45]}  g5 {[%clk 0:02:20]} 12. Bg3 {[%clk 0:02:44]}  O-O-O {[%clk 0:02:21]} 13. Nd2 {[%clk 0:02:43]}  Rhe8 {[%clk 0:02:19]} 14. Nc4 {[%clk 0:02:39]}  Bxg3 {[%clk 0:01:58]} 15. hxg3 {[%clk 0:02:40]}  c5 {[%clk 0:01:58]} 16. Ne5 {[%clk 0:02:32]}  h5 {[%clk 0:01:47]} 17. Bf5+ {[%clk 0:02:24]}  Kb8 {[%clk 0:01:45]} 18. Qd2 {[%clk 0:02:13]}  Qxe5 {[%clk 0:01:38]} 19. dxe5 {[%clk 0:02:03]}  Rxd2 {[%clk 0:01:39]} 20. exf6 {[%clk 0:01:59]}  Bxf5 {[%clk 0:01:37]} 21. Rxh5 {[%clk 0:01:59]}  b6 {[%clk 0:01:31]} 22. Rxg5 {[%clk 0:01:58]}  Bd3+ {[%clk 0:01:29]} 23. Kg1 {[%clk 0:01:58]}  Ree2 {[%clk 0:01:30]} 24. Rf5 {[%clk 0:01:55]}  Bxf5 {[%clk 0:01:29]} 0-1


[Site "https://www.chess.com"]

[Event "Titled Tuesday Blitz April 4 Early 2023"]
[White "Mikhaylova, Irina"]
[Black "UNSTOPPABLE_LEGEND"]
[WhiteFideId "4109040"]
[WhiteElo "1975"]
[BlackElo "2494"]
[Result "0-1"]
[Round "03"]
[TimeControl "180+2"]
[Date "2023.04.04"]
[WhiteClock "0:00:09"]
[BlackClock "0:01:10"]

1. d4 {[%clk 0:02:59]}  Nf6 {[%clk 0:02:56]} 2. Nf3 {[%clk 0:02:59]}  Ng8 {[%clk 0:02:57]} 3. c4 {[%clk 0:02:59]}  Nc6 {[%clk 0:02:56]} 4. Nc3 {[%clk 0:02:59]}  Nb8 {[%clk 0:02:57]} 5. e4 {[%clk 0:03:00]}  e6 {[%clk 0:02:54]} 6. Be2 {[%clk 0:03:00]}  d6 {[%clk 0:02:54]} 7. O-O {[%clk 0:02:59]}  Nd7 {[%clk 0:02:54]} 8. Be3 {[%clk 0:03:00]}  Be7 {[%clk 0:02:54]} 9. d5 {[%clk 0:03:00]}  Ngf6 {[%clk 0:02:49]} 10. Nd4 {[%clk 0:02:52]}  e5 {[%clk 0:02:41]} 11. Nf5 {[%clk 0:02:50]}  O-O {[%clk 0:02:42]} 12. b4 {[%clk 0:02:43]}  a5 {[%clk 0:02:38]} 13. a3 {[%clk 0:02:42]}  Re8 {[%clk 0:02:38]} 14. Nxe7+ {[%clk 0:02:40]}  Qxe7 {[%clk 0:02:38]} 15. Qc2 {[%clk 0:02:36]}  Nf8 {[%clk 0:02:37]} 16. f3 {[%clk 0:02:35]}  Ng6 {[%clk 0:02:36]} 17. Rfe1 {[%clk 0:02:35]}  Nh5 {[%clk 0:02:35]} 18. Bf1 {[%clk 0:02:35]}  Ngf4 {[%clk 0:02:32]} 19. c5 {[%clk 0:02:31]}  Bd7 {[%clk 0:02:16]} 20. Rac1 {[%clk 0:02:08]}  g5 {[%clk 0:02:11]} 21. Nb5 {[%clk 0:01:45]}  Rec8 {[%clk 0:02:03]} 22. Qd2 {[%clk 0:01:02]}  g4 {[%clk 0:02:01]} 23. g3 {[%clk 0:00:57]}  Ng6 {[%clk 0:01:47]} 24. c6 {[%clk 0:00:52]}  bxc6 {[%clk 0:01:45]} 25. dxc6 {[%clk 0:00:52]}  Be6 {[%clk 0:01:46]} 26. fxg4 {[%clk 0:00:49]}  Bxg4 {[%clk 0:01:45]} 27. Be2 {[%clk 0:00:50]}  Qe6 {[%clk 0:01:38]} 28. Bxg4 {[%clk 0:00:41]}  Qxg4 {[%clk 0:01:39]} 29. Qg2 {[%clk 0:00:39]}  Kh8 {[%clk 0:01:37]} 30. Nc3 {[%clk 0:00:39]}  Rg8 {[%clk 0:01:30]} 31. Kh1 {[%clk 0:00:22]}  Ngf4 {[%clk 0:01:22]} 32. Qf2 {[%clk 0:00:19]}  Nd3 {[%clk 0:01:21]} 33. Qe2 {[%clk 0:00:18]}  Qxe2 {[%clk 0:01:19]} 34. Nxe2 {[%clk 0:00:18]}  Nxc1 {[%clk 0:01:20]} 35. Rxc1 {[%clk 0:00:18]}  Nf6 {[%clk 0:01:18]} 36. Nc3 {[%clk 0:00:17]}  Rg4 {[%clk 0:01:15]} 37. b5 {[%clk 0:00:16]}  Nxe4 {[%clk 0:01:14]} 38. Nxe4 {[%clk 0:00:17]}  Rxe4 {[%clk 0:01:15]} 39. b6 {[%clk 0:00:17]}  cxb6 {[%clk 0:01:14]} 40. Bxb6 {[%clk 0:00:17]}  Rc8 {[%clk 0:01:13]} 41. Bxa5 {[%clk 0:00:17]}  Ra4 {[%clk 0:01:11]} 42. Bb4 {[%clk 0:00:17]}  d5 {[%clk 0:01:11]} 43. Bd6 {[%clk 0:00:16]}  e4 {[%clk 0:01:11]} 44. Rf1 {[%clk 0:00:14]}  Rxc6 {[%clk 0:01:11]} 45. Be5+ {[%clk 0:00:14]}  Kg8 {[%clk 0:01:11]} 46. Rb1 {[%clk 0:00:11]}  Rc8 {[%clk 0:01:11]} 47. Rf1 {[%clk 0:00:09]}  Re8 {[%clk 0:01:10]} 48. Bf6 {[%clk 0:00:09]}  e3 {[%clk 0:01:10]} 49. Rf5 {[%clk 0:00:09]}  e2 {[%clk 0:01:10]} 0-1


[Site "https://www.chess.com"]

[Event "Titled Tuesday Blitz April 4 Early 2023"]
[White "Nery Junior, Jose Antonio"]
[Black "Kleiman, Jake"]
[WhiteFideId "2104822"]
[BlackFideId "2020041"]
[WhiteElo "2197"]
[BlackElo "2606"]
[Result "0-1"]
[Round "03"]
[TimeControl "180+2"]
[Date "2023.04.04"]
[WhiteClock "0:01:39"]
[BlackClock "0:01:54"]

1. e4 {[%clk 0:03:00]}  e5 {[%clk 0:02:51]} 2. Nf3 {[%clk 0:03:01]}  Nc6 {[%clk 0:02:52]} 3. Bc4 {[%clk 0:03:01]}  Nf6 {[%clk 0:02:51]} 4. d3 {[%clk 0:03:02]}  Bc5 {[%clk 0:02:51]} 5. c3 {[%clk 0:03:02]}  O-O {[%clk 0:02:51]} 6. Bb3 {[%clk 0:03:02]}  d5 {[%clk 0:02:51]} 7. Nbd2 {[%clk 0:03:02]}  a5 {[%clk 0:02:48]} 8. a4 {[%clk 0:03:02]}  Re8 {[%clk 0:02:47]} 9. Qe2 {[%clk 0:02:49]}  b6 {[%clk 0:02:46]} 10. h3 {[%clk 0:02:44]}  Ba6 {[%clk 0:02:44]} 11. c4 {[%clk 0:02:18]}  dxe4 {[%clk 0:02:38]} 12. dxe4 {[%clk 0:02:18]}  Nb4 {[%clk 0:02:21]} 13. O-O {[%clk 0:02:15]}  Qd3 {[%clk 0:02:16]} 14. Re1 {[%clk 0:02:10]}  Rad8 {[%clk 0:02:13]} 15. Nf1 {[%clk 0:02:01]}  Qxb3 {[%clk 0:02:03]} 16. Bg5 {[%clk 0:01:39]}  Bxc4 {[%clk 0:01:54]} 0-1


[Site "https://www.chess.com"]

[Event "Titled Tuesday Blitz April 4 Early 2023"]
[White "Estremera Panos, Sergio"]
[Black "Dixit, Nikhil"]
[WhiteFideId "2200864"]
[BlackFideId "5059534"]
[WhiteElo "2253"]
[BlackElo "2207"]
[Result "0-1"]
[Round "03"]
[TimeControl "180+2"]
[Date "2023.04.04"]
[WhiteClock "0:01:23"]
[BlackClock "0:02:11"]

1. d4 {[%clk 0:03:00]}  Nf6 {[%clk 0:02:59]} 2. c4 {[%clk 0:03:01]}  g6 {[%clk 0:03:00]} 3. Nc3 {[%clk 0:03:01]}  Bg7 {[%clk 0:03:01]} 4. e4 {[%clk 0:03:01]}  d6 {[%clk 0:03:01]} 5. Be2 {[%clk 0:02:59]}  O-O {[%clk 0:03:02]} 6. Nf3 {[%clk 0:02:59]}  e5 {[%clk 0:03:02]} 7. d5 {[%clk 0:02:59]}  a5 {[%clk 0:03:02]} 8. Bg5 {[%clk 0:02:59]}  Na6 {[%clk 0:03:02]} 9. Nd2 {[%clk 0:02:56]}  Nc5 {[%clk 0:03:02]} 10. O-O {[%clk 0:02:53]}  Bd7 {[%clk 0:03:02]} 11. b3 {[%clk 0:02:52]}  h6 {[%clk 0:03:02]} 12. Bh4 {[%clk 0:02:52]}  Nfxe4 {[%clk 0:03:01]} 13. Ndxe4 {[%clk 0:02:50]}  Qxh4 {[%clk 0:02:57]} 14. Nxc5 {[%clk 0:02:42]}  dxc5 {[%clk 0:02:57]} 15. Bd3 {[%clk 0:02:29]}  f5 {[%clk 0:02:46]} 16. Rc1 {[%clk 0:02:22]}  e4 {[%clk 0:02:43]} 17. Be2 {[%clk 0:02:20]}  Be5 {[%clk 0:02:43]} 18. g3 {[%clk 0:02:20]}  Qf6 {[%clk 0:02:43]} 19. Qd2 {[%clk 0:02:18]}  Kg7 {[%clk 0:02:41]} 20. Rfd1 {[%clk 0:02:08]}  h5 {[%clk 0:02:41]} 21. Bf1 {[%clk 0:02:08]}  h4 {[%clk 0:02:40]} 22. Bg2 {[%clk 0:02:07]}  hxg3 {[%clk 0:02:36]} 23. hxg3 {[%clk 0:02:04]}  Rh8 {[%clk 0:02:36]} 24. Ne2 {[%clk 0:01:51]}  g5 {[%clk 0:02:32]} 25. g4 {[%clk 0:01:37]}  f4 {[%clk 0:02:18]} 26. Bxe4 {[%clk 0:01:37]}  Bxg4 {[%clk 0:02:13]} 27. f3 {[%clk 0:01:28]}  Bf5 {[%clk 0:02:11]} 28. Kg2 {[%clk 0:01:24]}  Bxe4 {[%clk 0:02:10]} 29. fxe4 {[%clk 0:01:22]}  f3+ {[%clk 0:02:11]} 30. Kf2 {[%clk 0:01:23]}  fxe2+ {[%clk 0:02:11]} 0-1


[Site "https://www.chess.com"]